Cogmind - Beta 11.2 @@@ ROGUE MODE // 2023.02.06 @ 21:44:56 Player: 3.14 Result: Self-destructed Performance ------------- Evolutions (4) 2000 Regions Visited (8) 1600 Robots Destroyed (48) 240 Value Destroyed (1347) 1347 Prototype IDs (4) 80 Alien Tech Used (0) 0 Bonus (785) 785 TOTAL SCORE: 6052 Bonus ------- Follower Combat Kills 210 Met Imprinter 300 Was Imprinted 300 Friendly Fire -25 Cogmind --------- Core Integrity 784/850 Matter 252/300 Energy 300/300 System Corruption 1% Temperature Cool (0) Movement Treading (250) Ox1 Location -6/Lower Caves Parts ------- > --- POWER (1) -------- Enhanced Nuclear Core > --- PROPULSION (4) --- Armored Treads Armored Treads Medium Treads Spiked Medium Treads > --- UTILITY (7) ------ Improved Heat Sink Huge Storage Unit Advanced Targeting Computer Target Analyzer Kinecellerator Weapon Cycler Improved Medium Armor Plating > --- WEAPON (3) ------- Heavy Assault Rifle Heavy Assault Rifle Gauss Rifle > --- INVENTORY (25) --- Angular Momentum Engine Armored Treads Armored Treads Medium Treads Advanced Heat Sink Improved Signal Interpreter Transport Network Coupler Weapon Cycler Experimental Weapon Shielding Improved Light Armor Plating Improved Light Armor Plating Improved Heavy Armor Plating EM Disruption Field Hacking Drone Bay (1/1) Light Assault Rifle Heavy Assault Rifle Heavy Assault Rifle Gauss Rifle Heavy Machine Gun Heavy Machine Gun Improved Grenade Launcher Improved Grenade Launcher Plasma Cutter CR-A16's Pointy Stick Peak State ------------ > --- POWER ------------ Enhanced Nuclear Core > --- PROPULSION ------- Armored Treads Armored Treads Medium Treads Spiked Medium Treads > --- UTILITY ---------- Improved Heat Sink Huge Storage Unit Advanced Targeting Computer Target Analyzer Kinecellerator Weapon Cycler Improved Medium Armor Plating > --- WEAPON ----------- Gauss Rifle Gauss Rifle Heavy Machine Gun > --- INVENTORY -------- Angular Momentum Engine Armored Treads Armored Treads Medium Treads Improved Heat Sink Advanced Heat Sink Improved Signal Interpreter Transport Network Coupler Weapon Cycler Improved Light Armor Plating EM Disruption Field System Shield Hacking Drone Bay Light Assault Rifle Light Assault Rifle Heavy Assault Rifle Heavy Assault Rifle Heavy Assault Rifle Heavy Assault Rifle Gauss Rifle Heavy Machine Gun Mini Grenade Launcher Mini Grenade Launcher Plasma Cutter CR-A16's Pointy Stick [Rating: 63] Favorites ----------- Power Light Ion Engine Engine Light Ion Engine Power Core Enhanced Nuclear Core Propulsion Light Treads Treads Light Treads Leg Improved Aluminum Leg Utility Huge Storage Unit Device Weapon Cycler Storage Huge Storage Unit Processor Improved Targeting Computer Protection Improved Medium Armor Plating Weapon Light Assault Rifle Energy Gun Heavy EM Pulse Gun Ballistic Gun Light Assault Rifle Launcher Mini Grenade Launcher Special Weapon Plasma Cutter Piercing Weapon CR-A16's Pointy Stick Build | -11 -10 -10 -9 -9 -7 -6 -6 -6 ------- Run | Scr Mat Min Mat Min Zio Pro Fac Low Slots Evolved 8 | . . . 2 . . . 6 . Power . | . . . . . . . . . Propulsion 2 | . . . 1 . . . 1 . Utility 5 | . . . . . . . 5 . Weapon 1 | . . . 1 . . . . . Parts Attached 62 | . 18 . 6 3 8 . 27 . Power 4 | . 1 . . 1 . . 2 . Engine 3 | . 1 . . 1 . . 1 . Core 1 | . . . . . . . 1 . Reactor . | . . . . . . . . . Propulsion 14 | . 6 . 1 2 1 . 4 . Treads 12 | . 4 . 1 2 1 . 4 . Leg 2 | . 2 . . . . . . . Wheel . | . . . . . . . . . Hover . | . . . . . . . . . Flight . | . . . . . . . . . Utility 17 | . 7 . . . 1 . 9 . Device 4 | . . . . . . . 4 . Storage 4 | . 4 . . . . . . . Processor 4 | . 1 . . . . . 3 . Hackware . | . . . . . . . . . Protection 5 | . 2 . . . 1 . 2 . Artifact . | . . . . . . . . . Weapon 27 | . 4 . 5 . 6 . 12 . Energy Gun 1 | . . . . . 1 . . . Energy Cannon . | . . . . . . . . . Ballistic Gun 18 | . 3 . 4 . 4 . 7 . Ballistic Cannon . | . . . . . . . . . Launcher 2 | . 1 . . . . . 1 . Special Weapon 1 | . . . 1 . . . . . Impact Weapon . | . . . . . . . . . Slashing Weapon . | . . . . . . . . . Piercing Weapon 5 | . . . . . 1 . 4 . Special Melee Weapon . | . . . . . . . . . Unidentified Prototypes 3 | . . . . . . . 3 . Parts Lost 3 | . 2 . . . . . 1 . Power 1 | . 1 . . . . . . . Propulsion 1 | . . . . . . . 1 . Utility . | . . . . . . . . . Weapon 1 | . 1 . . . . . . . Highest Loss Streak 2 | . 2 . . . . . 1 . To Critical Strikes . | . . . . . . . . . Average Slot Usage (%) 97 | . 98 100 99 100 100 100 90 100 Engine 9 | . 14 14 11 11 11 11 1 . Core 1 | . . . . . . . 4 6 Treads 27 | . 15 28 33 33 33 33 26 26 Leg 2 | . 12 . . . . . . . Device 3 | . . . . . . . 12 20 Storage 10 | . 14 14 11 11 11 11 6 6 Processor 8 | . 8 14 11 11 6 . 10 13 Protection 4 | . 3 . . . 4 11 6 6 Ballistic Gun 27 | . 27 28 28 33 31 33 19 20 Naked Turns . | . . . . . . . . . Heaviest Build 114 | 10 88 88 91 88 95 95 114 111 Greatest Support 96 | 20 40 40 60 60 68 68 96 96 Greatest Overweight (x) 3 | . 3 2 1 1 1 1 1 1 Average Overweight (x) . | . . 2 1 1 1 1 1 1 Largest Inventory Capacity 25 | . 25 25 25 25 25 25 25 25 Average Capacity 23 | . 16 25 25 25 25 25 25 25 Most Carried 25 | . 21 21 25 25 25 25 25 25 Average Carried 22 | . 11 21 22 24 24 24 24 25 Final Capacity 25 | 8 25 25 25 25 25 25 25 25 Final Carried 25 | 6 21 21 25 25 25 24 25 25 Class Distribution -------------------- 31% | Scavenger-Mutant 23% | Mutant 22% | Scavenger-Gunner 16% | Scavenger-Tank 6% | Gunner Dominant Class ---------------- Mutant | -10/Materials Mutant | -10/Mines Gunner | -9/Materials Scavenger-Gunner | -9/Mines Scavenger-Mutant | -7/Zion Scavenger-Tank | -6/Proximity Caves Scavenger-Gunner | -6/Factory Scavenger-Gunner | -6/Lower Caves Resources | -11 -10 -10 -9 -9 -7 -6 -6 -6 ----------- Run | Scr Mat Min Mat Min Zio Pro Fac Low Matter Collected 1492 | 197 271 24 211 66 60 25 638 . Remotely . | . . . . . . . . . Salvage Created 1927 | . 396 52 397 210 . . 872 . Parts 102 | . 21 3 22 15 . . 41 . Haulers Intercepted 3 | . 2 . 1 . . . . . Recyclers Shooed 5 | . 1 . 3 . . . 1 . Parts Field Recycled . | . . . . . . . . . Retrieved Matter . | . . . . . . . . . Parts Self-Destructed 10 | . . . . . 4 6 . . Prevented . | . . . . . . . . . Kills | -11 -10 -10 -9 -9 -7 -6 -6 -6 ------- Run | Scr Mat Min Mat Min Zio Pro Fac Low Combat Hostiles Destroyed 36 | . 6 3 5 8 . . 14 . Guns 32 | . 6 3 5 8 . . 10 . AOE 4 | . . . . . . . 4 . Classes Destroyed 13 | . 3 1 6 1 . . 2 . Worker 2 | . 1 . 1 . . . . . Builder 2 | . . . 1 . . . 1 . Hauler 3 | . 2 . 1 . . . . . Recycler 3 | . . . 1 . . . 2 . Mechanic 1 | . . . 1 . . . . . Watcher 1 | . . . 1 . . . . . Swarmer 14 | . . 3 . 5 . . 6 . Grunt 11 | . 6 . 3 2 . . . . Brawler 1 | . . . . 1 . . . . Duelist 1 | . . . 1 . . . . . Sentry 6 | . . . 1 . . . 5 . Specialist 2 | . . . . . . . 2 . Programmer 1 | . . . . . . . 1 . Best Kill Streak 6 | . 3 3 6 5 . . 4 . Combat Bots Only 5 | . 3 3 3 5 . . 3 . Max Kills in Single Turn 3 | . 1 1 2 2 . . 3 . Gunslinging 1 | . . . . 1 . . . . Exploded 3 | . . . . . . . 3 . Melee . | . . . . . . . . . Uniques/NPCs Destroyed . | . . . . . . . . . Combat | -11 -10 -10 -9 -9 -7 -6 -6 -6 -------- Run | Scr Mat Min Mat Min Zio Pro Fac Low Damage Taken 2149 | . 362 72 161 325 . . 1185 44 Core 215 | . 51 17 30 51 . . 66 . Absorbed by Shields . | . . . . . . . . . Redirected to Shielding 28 | . 28 . . . . . . . Regen/Repaired (Parts) 480 | . 57 . . . 423 . . . Core Remaining (%) 83 | 100 . 72 . . . 79 . . Volleys Fired 131 | . 34 6 36 12 2 1 40 . Largest 3 | . 2 2 3 3 1 3 3 . Hottest 86 | . 40 40 63 60 45 63 86 . Shots Fired 328 | . 67 12 92 36 2 3 116 . Gun 322 | . 66 12 89 36 2 3 114 . Cannon . | . . . . . . . . . Launcher 3 | . 1 . . . . . 2 . Special 3 | . . . 3 . . . . . Kinetic 320 | . 66 12 89 36 . 3 114 . Thermal 3 | . . . 3 . . . . . Explosive 3 | . 1 . . . . . 2 . Electromagnetic 2 | . . . . . 2 . . . Robot Hit Streak 15 | . 7 5 9 10 . 2 15 . Robot Miss Streak 6 | . 6 2 4 2 . 1 4 . Penetration Max 1 | . . . . . . . 1 . Secondary Targets 8 | . . 1 1 6 . . . . Max Gunslinging Chain 1 | . . 1 1 1 . . . . Shots Hit Robots 210 | . 38 9 56 24 . 2 81 . Core Hits 102 | . 22 3 23 16 . . 38 . Critical Kills 4 | . . . . 2 . . 2 . Critical Parts Destroyed 6 | . 1 . 1 . . . 4 . Critical Strikes 10 | . 1 . 1 2 . . 6 . Destroy 10 | . 1 . 1 2 . . 6 . Melee Attacks 7 | . . . . . 1 . 6 . Impact . | . . . . . . . . . Slashing . | . . . . . . . . . Piercing 7 | . . . . . 1 . 6 . Sneak Attacks . | . . . . . . . . . Combat Hostiles . | . . . . . . . . . Follow-up Attacks . | . . . . . . . . . Damage Inflicted 3222 | . 390 98 621 229 . 22 1862 . Guns 2864 | . 360 98 589 229 . 22 1566 . Cannons . | . . . . . . . . . Explosions 287 | . . . . . . . 287 . Melee . | . . . . . . . . . Ramming 39 | . 30 . . . . . 9 . Kinetic 2864 | . 360 98 589 229 . 22 1566 . Thermal 32 | . . . 32 . . . . . Explosive 287 | . . . . . . . 287 . Electromagnetic . | . . . . . . . . . Impact . | . . . . . . . . . Slashing . | . . . . . . . . . Piercing . | . . . . . . . . . Highest Corruption 1 | . . . . . . . 1 1 Average Corruption 1 | . . . . . . . 1 1 Corruption Purged . | . . . . . . . . . Corruption Blocked . | . . . . . . . . . Effects 1 | . . . . . . . . 1 Matter Fused 1 | . . . . . . . . 1 Overload Shots . | . . . . . . . . . Overflow Damage 19 | . . . . . . . 19 . Projectiles . | . . . . . . . . . Explosions 19 | . . . . . . . 19 . Melee . | . . . . . . . . . Knockbacks 1 | . 1 . . . . . . . Impact 1 | . 1 . . . . . . . Kinetic . | . . . . . . . . . Secondary . | . . . . . . . . . Self-Inflicted Damage 110 | . . . . . . . 110 . Shots 1 | . . . . . . . 1 . Rammed 7 | . 5 . . . . . 2 . Targets Rammed 8 | . 6 . . . . . 2 . Kicked 1 | . 1 . . . . . . . Crushed . | . . . . . . . . . Highest Temperature 66 | . 37 . 35 66 . 20 46 . Average Temperature 16 | . 12 . 13 29 . 15 12 . Received Heat Transfer 495 | . 207 . 45 54 . . 180 9 Siege Activations . | . . . . . . . . . Robots Corrupted . | . . . . . . . . . Combat Hostiles . | . . . . . . . . . Parts Fried . | . . . . . . . . . Impact Corruptions . | . . . . . . . . . Robots Melted . | . . . . . . . . . Combat Hostiles . | . . . . . . . . . Parts Melted . | . . . . . . . . . Heat Transferred 111 | . . . 111 . . . . . Parts Sabotaged . | . . . . . . . . . Parts Stolen . | . . . . . . . . . Parts Stripped . | . . . . . . . . . Power Chain Reactions . | . . . . . . . . . Missiles Intercepted . | . . . . . . . . . Alert | -11 -10 -10 -9 -9 -7 -6 -6 -6 ------- Run | Scr Mat Min Mat Min Zio Pro Fac Low Peak Influence 285 | . 124 86 207 226 . . 285 . Initial 33 | . . 1 33 16 . . . . Average 81 | . 48 76 71 138 . . 102 . Maximum Alert Level 1 | . . . 1 1 . . 1 . Low Security (%) 94 | . 100 100 91 81 . . 91 . Level 1 5 | . . . 8 18 . . 8 . Level 2 . | . . . . . . . . . Level 3 . | . . . . . . . . . Level 4 . | . . . . . . . . . Level 5 . | . . . . . . . . . High Security . | . . . . . . . . . Max Security . | . . . . . . . . . Squads Dispatched 8 | . 1 . 1 . . . 6 . Investigation 2 | . . . . . . . 2 . Extermination 2 | . . . . . . . 2 . Reinforcement 4 | . 1 . 1 . . . 2 . Assault . | . . . . . . . . . Garrison . | . . . . . . . . . Intercept . | . . . . . . . . . Searches Triggered . | . . . . . . . . . Construction Impeded . | . . . . . . . . . Haulers Reinforced . | . . . . . . . . . Active Scanning Responses . | . . . . . . . . . Cargo Convoy Interrupts . | . . . . . . . . . Stealth | -11 -10 -10 -9 -9 -7 -6 -6 -6 --------- Run | Scr Mat Min Mat Min Zio Pro Fac Low Distress Signals 9 | . 2 . 3 . . . 4 . Communications Jammed . | . . . . . . . . . Distress Signals . | . . . . . . . . . Times Spotted 82 | . 21 3 13 11 . 1 28 5 Peak Tracking Total 7 | . 5 3 5 6 . 1 6 7 Tactical Retreats 5 | . 1 . . . . . 4 . Traps | -11 -10 -10 -9 -9 -7 -6 -6 -6 ------- Run | Scr Mat Min Mat Min Zio Pro Fac Low Traps Triggered . | . . . . . . . . . Indirectly . | . . . . . . . . . Trap Hack Attempts . | . . . . . . . . . Triggered . | . . . . . . . . . Disarmed . | . . . . . . . . . Reprogrammed . | . . . . . . . . . Reused . | . . . . . . . . . Traps Extracted . | . . . . . . . . . Installed . | . . . . . . . . . Triggered . | . . . . . . . . . Machines | -11 -10 -10 -9 -9 -7 -6 -6 -6 ---------- Run | Scr Mat Min Mat Min Zio Pro Fac Low Machines Disabled 4 | . . . . . . . 4 . Max in Single Turn 1 | . . . . . . . 1 . Machines Sabotaged . | . . . . . . . . . Garrisons Compromised . | . . . . . . . . . Overloaded Fab Kills . | . . . . . . . . . Hacking | -11 -10 -10 -9 -9 -7 -6 -6 -6 --------- Run | Scr Mat Min Mat Min Zio Pro Fac Low Machines Accessed 7 | . 4 . . . . . 3 . Terminals 3 | . 3 . . . . . . . Fabricators 3 | . . . . . . . 3 . Repair Stations 1 | . 1 . . . . . . . Recycling Units . | . . . . . . . . . Scanalyzers . | . . . . . . . . . Garrison Access . | . . . . . . . . . Total Hacks 19 | . 13 . . . . . 6 . Successful 10 | . 8 . . . . . 2 . Failed 8 | . 4 . . . . . 4 . Catastrophic 2 | . 1 . . . . . 1 . Database Lockouts 1 | . 1 . . . . . . . Manual 22 | . 9 . . . . . 13 . Terminals 11 | . 11 . . . . . . . Fabricators 6 | . . . . . . . 6 . Repair Stations 2 | . 2 . . . . . . . Recycling Units . | . . . . . . . . . Scanalyzers . | . . . . . . . . . Garrison Access . | . . . . . . . . . Terminal Hacks 5 | . 5 . . . . . . . Record 1 | . 1 . . . . . . . Part Schematic 1 | . 1 . . . . . . . Robot Analysis 2 | . 2 . . . . . . . Repair Station Index 1 | . 1 . . . . . . . Fabricator Hacks . | . . . . . . . . . Repair Station Hacks 2 | . 2 . . . . . . . Scan Component 1 | . 1 . . . . . . . Repair 1 | . 1 . . . . . . . Recycling Unit Hacks . | . . . . . . . . . Scanalyzer . | . . . . . . . . . Garrison Access Hacks . | . . . . . . . . . Unauthorized Hacks 3 | . 1 . . . . . 2 . Terminals 1 | . 1 . . . . . . . Botnet 1 | . 1 . . . . . . . Fabricators 2 | . . . . . . . 2 . Fabnet 2 | . . . . . . . 2 . Repair Stations . | . . . . . . . . . Recycling Units . | . . . . . . . . . Scanalyzers . | . . . . . . . . . Garrison Access . | . . . . . . . . . Data Cores Recovered . | . . . . . . . . . Used . | . . . . . . . . . Hacking Detections 6 | . 4 . . . . . 2 . Full Trace Events 2 | . . . . . . . 2 . Feedback Events . | . . . . . . . . . Feedback Blocked . | . . . . . . . . . Robot Schematics Acquired 3 | . . . . . 3 . . . Robots Built . | . . . . . . . . . Authchips . | . . . . . . . . . Time . | . . . . . . . . . Total Robot Build Rating . | . . . . . . . . . Part Schematics Acquired 16 | . 1 . . . 15 . . . Parts Built . | . . . . . . . . . Authchips . | . . . . . . . . . Time . | . . . . . . . . . Total Part Build Rating . | . . . . . . . . . Parts Repaired 1 | . 1 . . . . . . . Time 26 | . 26 . . . . . . . Parts Recycled . | . . . . . . . . . Recycled Matter . | . . . . . . . . . Retrieved Matter . | . . . . . . . . . Retrieved Components . | . . . . . . . . . Parts Scanalyzed . | . . . . . . . . . Part Schematics Acquired . | . . . . . . . . . Parts Damaged . | . . . . . . . . . Bothacking | -11 -10 -10 -9 -9 -7 -6 -6 -6 ------------ Run | Scr Mat Min Mat Min Zio Pro Fac Low Used RIF Installer . | . . . . . . . . . Robots Hacked . | . . . . . . . . . Non-combat . | . . . . . . . . . Combat . | . . . . . . . . . Robot Hacks Applied . | . . . . . . . . . Relay Couplers Released . | . . . . . . . . . Fabnet Peak Effective % . | . . . . . . . . . Robots Rewired . | . . . . . . . . . Allies Hacked 1 | . . . . . . 1 . . Hacks Repelled . | . . . . . . . . . Allies | -11 -10 -10 -9 -9 -7 -6 -6 -6 -------- Run | Scr Mat Min Mat Min Zio Pro Fac Low Total Allies 9 | . . . . 2 6 . 1 . Largest Group 6 | . . . . 2 6 6 5 . Highest-Rated Group 206 | . . . . 51 206 206 166 . Highest-Rated Ally 40 | . . . . 31 40 40 40 . Zionite Dispatches 1 | . . . . . . . 1 . Offense Resupply 1 | . . . . . . . 1 . Total Orders 3 | . . . . . . . 3 . DROP 1 | . . . . . . . 1 . RETURN 2 | . . . . . . . 2 . Ally Attacks 33 | . . . . 5 . 10 18 . Total Damage 1457 | . . . . 63 . 103 1291 . Kills 13 | . . . . 1 . 1 11 . Allies Corrupted 1 | . . . . . . 1 . . Allies Melted . | . . . . . . . . . Intel | -11 -10 -10 -9 -9 -7 -6 -6 -6 ------- Run | Scr Mat Min Mat Min Zio Pro Fac Low Robot Analysis Total 2 | . 2 . . . . . . . Derelict Logs Recovered 5 | . . . . 1 2 1 . 1 Drone Launches 2 | . . . . . . . 2 . Drone Recoveries 2 | . . . . . . . 2 . Decoded 0b10 Intel 13 | . . . . . . . 13 . Traps 8 | . . . . . . . 8 . Emergency Access 5 | . . . . . . . 5 . Zionite Intel Received 1 | . . . . . . . 1 . Branch Access 1 | . . . . . . . 1 . Exploration | -11 -10 -10 -9 -9 -7 -6 -6 -6 ------------- Run | Scr Mat Min Mat Min Zio Pro Fac Low Turns Passed 7731 | . 1411 347 504 279 2372 814 1791 213 Spaces Moved 3003 | 1 620 104 159 101 976 329 628 85 Core . | . . . . . . . . . Treads 2685 | . 303 104 159 101 976 329 628 85 Legs 318 | 1 317 . . . . . . . Wheels . | . . . . . . . . . Hover . | . . . . . . . . . Flight . | . . . . . . . . . Fastest Speed 120 | 120 120 320 240 240 240 246 247 250 Average Speed 236 | 120 195 320 240 240 240 246 248 250 Slowest Speed 330 | 120 330 320 240 240 246 246 250 250 Overloaded Moves . | . . . . . . . . . Propulsion Burnouts . | . . . . . . . . . Robots Hopped . | . . . . . . . . . Cave-ins Triggered . | . . . . . . . . . Exploration Rate (%) 38 | 1 79 30 18 32 87 52 19 25 Regions Visited 8 Branch Regions 5 Pre-discovered Areas 3 | . . . . . 2 1 . . Known Exits Taken 1 | . . . . . . . 1 . Unknown Exits Taken 7 | 1 1 1 1 1 1 1 . . Scrap Searched 4 | . . . . . 3 1 . . Spaces Dug 15 | . 9 . . . . . 6 . Terrain Destroyed 52 | . 9 . . . . . 43 . Melee 6 | . . . . . . . 6 . Projectile 2 | . . . . . . . 2 . AOE 44 | . 9 . . . . . 35 . Terrain Rammed . | . . . . . . . . . Walls Destroyed . | . . . . . . . . . Machines Disabled . | . . . . . . . . . Actions | -11 -10 -10 -9 -9 -7 -6 -6 -6 --------- Run | Scr Mat Min Mat Min Zio Pro Fac Low Total 3412 | . 756 109 216 120 1000 335 791 85 Wait 88 | . 32 . 2 1 2 3 48 . Move 2995 | . 619 103 158 100 975 328 627 85 Hop . | . . . . . . . . . Pick Up 63 | . 29 . 10 1 4 1 18 . Fast Attach 13 | . 4 . . . 2 . 7 . Attach 17 | . 6 . 4 1 . . 6 . Detach 1 | . . . . . . . 1 . Swap 32 | . 8 . 2 2 6 . 14 . Drop 57 | . 18 . 4 3 8 2 22 . Fire 131 | . 34 6 36 12 2 1 40 . Melee 7 | . . . . . 1 . 6 . Ram . | . . . . . . . . . Kick 1 | . 1 . . . . . . . Crush 7 | . 5 . . . . . 2 . Escape Stasis . | . . . . . . . . . Rewire . | . . . . . . . . . Trap . | . . . . . . . . . Miscellaneous . | . . . . . . . . . Route ------- -11/Scrapyard -10/Materials (discovered 4 exits: [*Mat x2] / [*Min x2]) -10/Mines -9/Materials -9/Mines -7/Zion -6/Proximity Caves -6/Factory (discovered 3 exits: [*Fac] / *Low x2) -6/Lower Caves History --------- Turn | Location | Event 1 | -11/Scrapyard | Discovered new exit (range 0) 1 | -11/Scrapyard | Entered Materials 76 | -10/Materials | Discovered new exit (range 9) 303 | -10/Materials | Build established: Mutant 601 | -10/Materials | Repaired Lgt. Assault Rifle 608 | -10/Materials | Discovered new exit (range 16) 662 | -10/Materials | Central database locked down 758 | -10/Materials | Discovered new exit (range 11) 777 | -10/Materials | Discovered new exit (range 15) 1412 | -10/Materials | Entered Mines 1717 | -10/Mines | Discovered new exit (range 6) 1759 | -10/Mines | Entered Materials 1759 | -9/Materials | Evolved 2 slots: Propulsion x1, Weapon x1 2048 | -9/Materials | Discovered new exit (range 15) 2263 | -9/Materials | Entered Mines 2277 | -9/Mines | Met a Derelict bent on vengeance 2355 | -9/Mines | Learned 4 Materials zone layouts 2473 | -9/Mines | A Derelict revealed a hidden shortcut to a safe place 2542 | -9/Mines | Entered Zion 2542 | -7/Zion | Accompanied by 2 allies 2592 | -7/Zion | Led the pair of lost Derelicts to a safe place 2629 | -7/Zion | Build established: Scavenger-Gunner 2706 | -7/Zion | Discovered new exit (range 15) 2759 | -7/Zion | Gained Derelict followers 2980 | -7/Zion | Learned Factory terminal intel 3000 | -7/Zion | Build established: Scavenger-Mutant 3035 | -7/Zion | Visited the Megawrench Repair Shop 3353 | -7/Zion | Given the Hacking Drone Bay 3358 | -7/Zion | Found Prototype Device 3484 | -7/Zion | Found CR-A16's Pointy Stick 3759 | -7/Zion | Received a hallucinogenic algorithm 3912 | -7/Zion | Learned Factory interactive machine intel 4066 | -7/Zion | Megawrench repaired 9 parts 4395 | -7/Zion | Imprinted 4397 | -7/Zion | Declared Zion's savior 4914 | -7/Zion | Entered Proximity Caves 4914 | -6/Proximity Caves | Accompanied by 6 allies 5208 | -6/Proximity Caves | Build established: Scavenger-Tank 5703 | -6/Proximity Caves | Discovered new exit (range 10) 5728 | -6/Proximity Caves | Entered Factory 5728 | -6/Factory | Accompanied by 5 allies 5728 | -6/Factory | Evolved 6 slots: Propulsion x1, Utility x5 5729 | -6/Factory | Loaded intel: 52 interactive machine locations 5729 | -6/Factory | Identified Hacking Drone Bay 5730 | -6/Factory | Loaded intel: 26 terminal locations 5736 | -6/Factory | Identified exit to DSF 6057 | -6/Factory | Discovered new exit (range 13) 6294 | -6/Factory | Retrieved Zion intel report: Branch Access 6294 | -6/Factory | Identified exit to Lower Caves 6295 | -6/Factory | Zion Offense Resupply teleported in 6596 | -6/Factory | Build established: Scavenger-Gunner 7245 | -6/Factory | Terminal network hard line cut 7519 | -6/Factory | Entered Lower Caves 7592 | -6/Lower Caves | Learned location of 2 exits from Factory 7731 | -6/Lower Caves | Attracted the attention of an 0b10 outpost 7732 | -6/Lower Caves | Self-destructed Last Messages --------------- 07460_ Destroyed Gravmag System. 07461_ K-01 Serf collects debris. 07463_ Slug penetrates P-60 Hacker. 07463_ Destroyed Shock Rifle. 07466_ Slug penetrates P-60 Hacker. 07466_ Destroyed Shock Rifle. 07474_ Acquired 21 matter. 07476_ Acquired 29 matter. 07479_ Acquired 140 matter. 07482_ R-10 Processor collects Com. Wheel. 07483_ K-01 Serf cleans the Neutrino Reactor. 07491_ R-10 Processor collects Lgt. Nuclear Core. 07496_ K-01 Serf cleans the Neutrino Reactor. LOCATION=LOWER CAVES GOAL=ESCAPE 07588_ System corrupted: Matter fused (-5). 07592_ Acquired derelict log, extracted data. Data stored: Factory exits (x2). 07730_ Penetrated by Slug. 07731_ Y-64 Sentinel: "DETECTED UNIDENTIFIED DERELICT." Map ----- +----------------------------------------------------+ | ?????????????????????????????????????????????????? | | ?????????????????????????????????????????????????? | | ?????????????????????????????????????????????????? | | ?????????????????????????????????????????????????? | | ?????????????????????????????????????????????????? | | ?????????????????????????????????????????????????? | | ?????????????????????????????????????????????????? | | ?????????????????????????????????????????????????? | | ?????????????????????????????????????????????????? | | ????????????????????????????????###??????????????? | | ????????????????????????????????# #?????????????? | | ????????????????????????????????? ?????????????? | | ?????????????????????????????????? ###??????????? | | ??????????????????????????????????# #????????##? | | ?????????????????????????????????## #????#### ## | | ?????????????????????????????????# #???## ? | | ?????????????????????????????????? ##?## #?? | | ???????????????????????????#####???# #?# #### | | ??????????????????????????## ##??# ### | | ???????????????????????#??# #### | | ???????????????????????# ?# ##### | | ???????????????????????# ?# #???# | | ???????????????????????# ?## #??# | | ??????????????????????## #### #?# | | ??????????????????????# #?# | | ??????????????????????# @###### #? | | ??????????????????????# Y#???# #? | | ??????????????????????# g #???# #? | | ??????????????????????# ##l#???# ### ##? | | ?????????????????????? ?? l???# ## ##??##?? | | ????????????????????? ??? g???# ####?????## | | ????????????????????# ???"""??# #######???????## | | ???????????????????? ????###??# ??????????????# | | ??????????????????? ????????? ??????????????# | | ?????????????????? ??????????##??????????????# | | ?????????????????? #??????????????????????????## | | ?????????????????###????????????????????????????## | | ?????????????????????????????????????????????????? | | ?????????????????????????????????????????????????? | | ?????????????????????????????????????????????????? | | ?????????????????????????????????????????????????? | | ?????????????????????????????????????????????????? | | ?????????????????????????????????????????????????? | | ?????????????????????????????????????????????????? | | ?????????????????????????????????????????????????? | | ?????????????????????????????????????????????????? | | ?????????????????????????????????????????????????? | | ?????????????????????????????????????????????????? | | ?????????????????????????????????????????????????? | | ?????????????????????????????????????????????????? | +----------------------------------------------------+ Best States ------------- Heat Dissipation 51 Energy Generation 18 Energy Capacity 300 Matter Stores 300 Matter Capacity 300 Sight Range 16 Terrain Scan Density 10 Armor Coverage 225 Propulsion Shielding 33 Weapon Cycling 15 Evasion (%) 55 Targeting Accuracy 8 Target Analysis 5 Recoil Reduction 4 Kinecelleration 30 Item Schematics ----------------- Huge Storage Unit | -10/Materials | Hacked Imp. Trap Scanner | -7/Zion | Archive Imp. Field Recycling Unit | -7/Zion | Archive Adv. ECM Suite | -7/Zion | Archive Imp. Cryofiber Web | -7/Zion | Archive Adv. Shield Generator | -7/Zion | Archive Arm. Huge Wheel | -7/Zion | Archive Spk. Medium Treads | -7/Zion | Archive Energy Filter | -7/Zion | Archive Hvy. Flak Cannon | -7/Zion | Archive Imp. Target Analyzer | -7/Zion | Archive Imp. Medium Armor Plating | -7/Zion | Archive Plasma Flamer | -7/Zion | Archive Hvy. Rocket Launcher | -7/Zion | Archive Point Defense System | -7/Zion | Archive Lrn. Phase Cannon | -7/Zion | Archive Robot Schematics ------------------ G-47 Trooper | -7/Zion | Archive L-41 Fighter | -7/Zion | Archive K-01 Serf | -7/Zion | Archive Fabricated ------------ Nothing Alien Tech Used ----------------- None Achievements -------------- None Challenges ------------ None Game ------ Seed HardlightBombGun Manual? 0 Play Time 00:24:03 Cumulative 761.6 hours Start 2023.02.06 @ 21:20:08 End 2023.02.06 @ 21:44:56 Sessions 1 Manual Loads 0 Difficulty Rogue Special Mode None Game No. 1179 Rogue 1179 Adventurer 0 Explorer 0 Win Type - Total 72 Types 43/1/11/12/4/0/0/1/0 Lore% 92 Gallery% 91 Achievement% 83 Wizard Run 0 Options --------- ASCII 1 Keyboard 0 Movement Numpad Keybinds 0 Fullscreen 0 Font 14/SmallcapsGlow Map View 76x50 Tactical HUD 1 Map Filters NONE Filters NONE Steam 1 RUN: ef503c79-3018-4e35-85a9-3968201f1488